fUSD/lending_fUSD_20240803
["ID","MTS","AMOUNT","RATE_DAILY","PERIOD"]
[333948265,1722646256548,-500.0,0.00016438,2]
[333948266,1722646256560,-1000.67,0.00016438,2]
[333948267,1722646256570,-3885.43,0.00016438,2]
[333948268,1722646256580,-1795.3,0.00016438,2]
[333948269,1722646256589,-500.0,0.00016438,2]
[333948270,1722646256598,-5534.08,0.00016438,2]
[333948271,1722646256607,-934.47,0.00016438,2]
[333948272,1722646256617,-1762.42,0.00016438,2]
[333948273,1722646256626,-1422.85,0.00016438,2]
[333948274,1722646256635,-2778.69,0.00016438,2]
[333948275,1722646256645,-500.0,0.00016438,2]
[333948276,1722646256654,-1735.66,0.00016438,2]
[333948277,1722646256663,-1060.14,0.00016438,2]
[333948278,1722646256673,-18694.04,0.00016438,2]
[333948279,1722646256682,-500.0,0.00016438,2]
[333948280,1722646256691,-4441.86,0.00016438,2]
[333948281,1722646256701,-1848.95,0.00016438,2]
[333948282,1722646256710,-1159.01,0.00016438,2]
[333948283,1722646256719,-500.0,0.00016438,2]
[333948284,1722646256728,-3406.14,0.00016438,2]
[333948285,1722646256738,-611.98,0.00016438,2]
[333948286,1722646256747,-915.87,0.00016438,2]
[333948287,1722646256756,-542.28,0.00016438,2]
[333948288,1722646256765,-538.24,0.00016438,2]
[333948289,1722646256774,-1130.18,0.00016438,2]
[333948290,1722646256783,-4749.14,0.00016438,2]
[333948291,1722646256793,-500.0,0.00016438,2]
[333948292,1722646256804,-500.0,0.00016438,2]
[333948293,1722646256813,-500.0,0.00016438,2]
[333948294,1722646256822,-5758.88,0.00016438,2]
[333948295,1722646256831,-1860.27,0.00016438,2]
[333948296,1722646256840,-500.0,0.00016438,2]
[333948297,1722646256849,-3349.32,0.00016438,2]
[333948298,1722646256858,-2605.8,0.00016438,2]
[333948299,1722646256868,-6977.07,0.00016438,2]
[333948300,1722646256877,-1014.43,0.00016438,2]
[333948301,1722646256886,-500.0,0.00016438,2]
[333948302,1722646256895,-1360.65,0.00016438,2]
[333948303,1722646256904,-2596.82,0.00016438,2]
[333948304,1722646256913,-513.62,0.00016438,2]
[333948305,1722646256922,-500.0,0.00016438,2]
[333948306,1722646256932,-710.9,0.00016438,2]
[333948307,1722646256941,-924.53,0.00016438,2]
[333948308,1722646256950,-1344.72,0.00016438,2]
[333948309,1722646256959,-2823.74,0.00016438,2]
[333948310,1722646256968,-500.0,0.00016438,2]
[333948311,1722646256978,-500.0,0.00016438,2]
[333948312,1722646256987,-2541.88,0.00016438,2]
[333948313,1722646256996,-1224.95,0.00016438,2]
[333948314,1722646257006,-601.07,0.00016438,2]
[333948315,1722646257016,-500.0,0.00016438,2]
[333948316,1722646257025,-1710.55,0.00016438,2]
[333948317,1722646257034,-1135.54,0.00016438,2]
[333948318,1722646257044,-2569.09,0.00016438,2]
[333948319,1722646257056,-500.0,0.00016438,2]
[333948320,1722646257066,-500.0,0.00016438,2]
[333948321,1722646257075,-500.0,0.00016438,2]
[333948322,1722646257084,-1455.86,0.00016438,2]
[333948323,1722646257094,-641.65,0.00016438,2]
[333948324,1722646257104,-551.62,0.00016438,2]
[333948325,1722646257113,-10700.72,0.00016438,2]
[333948326,1722646257122,-2238.23,0.00016438,2]
[333948327,1722646257132,-500.0,0.00016438,2]
[333948328,1722646257140,-5176.32,0.00016438,2]
[333948329,1722646257150,-1319.79,0.00016438,2]
[333948330,1722646257159,-500.0,0.00016438,2]
[333948331,1722646257168,-1119.28,0.00016438,2]
[333948332,1722646257177,-500.0,0.00016438,2]
[333948333,1722646257186,-4312.21,0.00016438,2]
[333948334,1722646257195,-2299.29,0.00016438,2]
[333948335,1722646257204,-719.14,0.00016438,2]
[333948336,1722646257213,-500.0,0.00016438,2]
[333948337,1722646257222,-525.68,0.00016438,2]
[333948338,1722646257231,-500.0,0.00016438,2]
[333948339,1722646257240,-500.0,0.00016438,2]
[333948340,1722646257254,-500.0,0.00016438,2]
[333948341,1722646257263,-1060.28,0.00016438,2]
[333948342,1722646257272,-2772.12,0.00016438,2]
[333948343,1722646257282,-2035.15,0.00016438,2]
[333948344,1722646257292,-500.0,0.00016438,2]
[333948345,1722646257304,-2957.01,0.00016438,2]
[333948346,1722646257313,-500.0,0.00016438,2]
[333948347,1722646257326,-2550.43,0.00016438,2]
[333948348,1722646257335,-500.0,0.00016438,2]
[333948349,1722646257345,-500.0,0.00016438,2]
[333948350,1722646257354,-8385.3,0.00016438,2]
[333948351,1722646257363,-765.33,0.00016438,2]
[333948352,1722646257372,-500.0,0.00016438,2]
[333948353,1722646257381,-3032.04,0.00016438,2]
[333948354,1722646257391,-5327.6,0.00016438,2]
[333948355,1722646257400,-500.0,0.00016438,2]
[333948356,1722646257409,-678.36,0.00016438,2]
[333948357,1722646257418,-3316.32,0.00016438,2]
[333948358,1722646257427,-1720.49,0.00016438,2]
[333948359,1722646257438,-704.89,0.00016438,2]
[333948360,1722646257447,-726.48,0.00016438,2]
[333948361,1722646257457,-1082.96,0.00016438,2]
[333948362,1722646257466,-4983.79,0.00016438,2]
[333948363,1722646257476,-500.0,0.00016438,2]
[333948364,1722646257485,-500.0,0.00016438,2]
[333948365,1722646257494,-572.99,0.00016438,2]
[333948366,1722646257504,-2526.47,0.00016438,2]
[333948367,1722646257513,-676.03,0.00016438,2]
[333948368,1722646257523,-975.03,0.00016438,2]
[333948369,1722646257532,-3447.39,0.00016438,2]
[333948370,1722646257541,-4480.86,0.00016438,2]
[333948371,1722646257550,-988.45,0.00016438,2]
[333948372,1722646257564,-5195.88,0.00016438,2]
[333948373,1722646257573,-500.0,0.00016438,2]
[333948374,1722646257582,-636.58,0.00016438,2]
[333948375,1722646257592,-759.11,0.00016438,2]
[333948376,1722646257601,-985.08,0.00016438,2]
[333948377,1722646257610,-500.0,0.00016438,2]
[333948378,1722646257621,-500.0,0.00016438,2]
[333948379,1722646257630,-1696.1,0.00016438,2]
[333948380,1722646257640,-500.0,0.00016438,2]
[333948381,1722646257650,-1369.3,0.00016438,2]
[333948382,1722646257660,-2443.14,0.00016438,2]
[333948383,1722646257669,-658.65,0.00016438,2]
[333948384,1722646257678,-500.0,0.00016438,2]
[333948385,1722646257688,-500.0,0.00016438,2]
[333948386,1722646257697,-500.0,0.00016438,2]
[333948387,1722646257707,-500.0,0.00016438,2]
[333948388,1722646257716,-500.0,0.00016438,2]
[333948389,1722646257725,-1371.64,0.00016438,2]
[333948390,1722646257736,-500.0,0.00016438,2]
[333948391,1722646257745,-1620.58,0.00016438,2]
[333948392,1722646257754,-500.0,0.00016438,2]
[333948393,1722646257764,-500.0,0.00016438,2]
[333948394,1722646257773,-1462.43,0.00016438,2]
[333948395,1722646257783,-433.42,0.00016438,2]
[333948396,1722646257793,-1505.97,0.00016438,2]
[333948397,1722646257803,-516.16,0.00016438,2]
[333948398,1722646257813,-500.0,0.00016438,2]
[333948399,1722646257823,-804.01,0.00016438,2]
[333948400,1722646257832,-4087.08,0.00016438,2]
[333948401,1722646257842,-7148.08,0.00016438,2]
[333948402,1722646257851,-2717.77,0.00016438,2]
[333948403,1722646257861,-1164.28,0.00016438,2]
[333948404,1722646257870,-616.72,0.00016438,2]
[333948405,1722646257880,-500.0,0.00016438,2]
[333948406,1722646257889,-500.0,0.00016438,2]
[333948407,1722646257899,-1600.94,0.00016438,2]
[333948408,1722646257908,-12055.4,0.00016438,2]
[333948409,1722646257917,-566.03,0.00016438,2]
[333948410,1722646257927,-743.86,0.00016438,2]
[333948411,1722646257936,-1327.71,0.00016438,2]
[333948412,1722646257946,-5625.99,0.00016438,2]
[333948413,1722646257956,-1197.01,0.00016438,2]
[333948414,1722646257966,-2063.72,0.00016438,2]
[333948415,1722646257975,-1595.38,0.00016438,2]
[333948416,1722646257984,-1761.04,0.00016438,2]
[333948417,1722646257993,-1128.13,0.00016438,2]
[333948418,1722646258003,-668.21,0.00016438,2]
[333948419,1722646258013,-740.43,0.00016438,2]
[333948420,1722646258022,-894.62,0.00016438,2]
[333948421,1722646258032,-500.0,0.00016438,2]
[333948422,1722646258041,-649.34,0.00016438,2]
[333948423,1722646258050,-500.0,0.00016438,2]
[333948424,1722646258062,-4636.18,0.00016438,2]
[333948425,1722646258071,-1682.73,0.00016438,2]
[333948426,1722646258080,-500.0,0.00016438,2]
[333948427,1722646258090,-1620.3,0.00016438,2]
[333948428,1722646258099,-500.0,0.00016438,2]
[333948429,1722646258107,-1261.22,0.00016438,2]
[333948430,1722646258117,-8136.9,0.00016438,2]
[333948431,1722646258126,-210.795437,0.00016438,2]
[333948432,1722646258135,-210.795437,0.00016438,2]
[333948433,1722646258144,-3928.18,0.00016438,2]
[333948434,1722646258153,-500.0,0.00016438,2]
[333948435,1722646258162,-531.83,0.00016438,2]
[333948436,1722646258171,-500.0,0.00016438,2]
[333948437,1722646258181,-210.795437,0.00016438,2]
[333948438,1722646258189,-210.795437,0.00016438,2]
[333948439,1722646258199,-500.0,0.00016438,2]
[333948440,1722646258209,-6119.07,0.00016438,2]
[333948441,1722646258218,-500.0,0.00016438,2]
[333948442,1722646258227,-2012.98,0.00016438,2]
[333948443,1722646258236,-690.28,0.00016438,2]
[333948444,1722646258249,-500.0,0.00016438,2]
[333948445,1722646258258,-5132.77,0.00016438,2]
[333948446,1722646258268,-500.0,0.00016438,2]
[333948447,1722646258277,-522.68,0.00016438,2]
[333948448,1722646258287,-535.37,0.00016438,2]
[333948449,1722646258296,-524.56,0.00016438,2]
[333948450,1722646258307,-2509.64,0.00016438,2]
[333948451,1722646258317,-22632.55,0.00016438,2]
[333948452,1722646258327,-16860.05,0.00016438,2]
[333948453,1722646258337,-500.0,0.00016438,2]
[333948454,1722646258347,-500.0,0.00016438,2]
[333948455,1722646258357,-3914.59,0.00016438,2]
[333948456,1722646258367,-657.08,0.00016438,2]
[333948457,1722646258376,-2148.11,0.00016438,2]
[333948458,1722646258386,-3722.17,0.00016438,2]
[333948459,1722646258395,-2265.98,0.00016438,2]
[333948460,1722646258405,-7847.53,0.00016438,2]
[333948461,1722646258569,-500.0,0.00016438,2]
[333948462,1722646258598,-960.01,0.00016438,2]
[333948463,1722646258609,-808.82,0.00016438,2]
[333948464,1722646258619,-724.47,0.00016438,2]
[333948465,1722646258630,-418.2937502,0.00016438,2]
[333948466,1722646258641,-500.0,0.00016438,2]
[333948467,1722646258651,-1367.24,0.00016438,2]
[333948468,1722646258662,-641.11,0.00016438,2]
[333948469,1722646258672,-4723.57,0.00016438,2]
[333948470,1722646258682,-2713.76,0.00016438,2]
[333948471,1722646258691,-953.39,0.00016438,2]
[333948472,1722646258701,-3116.74,0.00016438,2]
[333948473,1722646258711,-500.0,0.00016438,2]
[333948474,1722646258720,-500.0,0.00016438,2]
[333948475,1722646258730,-3005.02,0.00016438,2]
[333948476,1722646258740,-500.0,0.00016438,2]
[333948477,1722646258749,-644.38,0.00016438,2]
[333948478,1722646258759,-500.0,0.00016438,2]
[333948479,1722646258768,-2741.21,0.00016438,2]
[333948480,1722646258778,-61148.97,0.00016438,2]
[333948481,1722646258788,-500.0,0.00016438,2]
[333948482,1722646258797,-500.0,0.00016438,2]
[333948483,1722646258809,-2263.09,0.00016438,2]
[333948484,1722646258822,-1276.75,0.00016438,2]
[333948485,1722646258832,-4076.5,0.00016438,2]
[333948486,1722646258841,-500.0,0.00016438,2]
[333948487,1722646258851,-5277.39,0.00016438,2]
[333948488,1722646258860,-1363.08,0.00016438,2]
[333948489,1722646258870,-1114.63,0.00016438,2]
[333948490,1722646258880,-796.38,0.00016438,2]
[333948491,1722646258889,-500.0,0.00016438,2]
[333948492,1722646258898,-500.0,0.00016438,2]
[333948493,1722646258908,-500.0,0.00016438,2]
[333948494,1722646258917,-500.0,0.00016438,2]
[333948495,1722646258927,-151.0,0.00016438,2]
[333948496,1722646258937,-151.0,0.00016438,2]
[333948497,1722646258946,-151.0,0.00016438,2]
[333948498,1722646258955,-151.0,0.00016438,2]
[333948499,1722646258965,-259.7073497,0.00016444,2]
[333948500,1722646258974,-1000.0,0.00016458,2]
[333948501,1722646258984,-686.28935795,0.00016458,2]
[333948502,1722646258994,-150.0,0.00016497,2]
[333948503,1722646259004,-1762.35293248,0.000165,2]
[333948504,1722646259014,-150.0,0.00016517,2]
[333948505,1722646259023,-150.0,0.0001654,2]
[333948506,1722646259033,-150.0,0.00016546,2]
[333948507,1722646259042,-150.0,0.00016547,2]
[333948508,1722646259052,-150.0,0.00016559,2]
[333948509,1722646259063,-150.0,0.00016588,2]
[333948510,1722646259073,-150.0,0.00016614,2]
[333948511,1722646259082,-215.93898967,0.00016658,2]
[333948512,1722646259092,-800.0,0.000167,2]
[333948513,1722646259102,-1000.0,0.000167,2]
[333948514,1722646259111,-1000.0,0.000167,2]
[333948515,1722646259122,-161.0,0.000167,2]
[333948516,1722646259131,-200.01,0.00016706,2]
[333948517,1722646259141,-1224.08439632,0.00016707,2]
[333948518,1722646259150,-1224.08439632,0.00016709,2]
[333948519,1722646259159,-72274.4604119,0.0001671,2]
[333948520,1722646259170,-4109.6723963,0.0001671,2]
[333948521,1722646259179,-9347.703641,0.0001671,2]
[333948522,1722646259189,-500.0,0.00016712,2]
[333948523,1722646259198,-500.0,0.00016712,2]
[333948524,1722646259208,-1367.89,0.00016712,2]
[333948525,1722646259218,-500.0,0.00016712,2]
[333948526,1722646259227,-500.0,0.00016712,2]
[333948527,1722646259236,-759.77,0.00016712,2]
[333948528,1722646259251,-500.0,0.00016712,2]
[333948529,1722646259260,-1673.49,0.00016712,2]
[333948530,1722646259269,-672.39,0.00016712,2]
[333948531,1722646259278,-502.35,0.00016712,2]
[333948532,1722646259290,-500.0,0.00016712,2]
[333948533,1722646259299,-541.39,0.00016712,2]
[333948534,1722646259309,-685.07,0.00016712,2]
[333948535,1722646259320,-1012.82,0.00016712,2]
[333948536,1722646259329,-1462.39,0.00016712,2]
[333948537,1722646259339,-706.21,0.00016712,2]
[333948538,1722646259348,-628.00927208,0.00016712,2]
[333948539,1722646259357,-500.0,0.00016712,2]
[333948540,1722646259366,-500.0,0.00016712,2]
[333948541,1722646259376,-501.24,0.00016712,2]
[333948542,1722646259385,-596.87,0.00016712,2]
[333948543,1722646259399,-715.4,0.00016712,2]
[333948544,1722646259408,-673.09,0.00016712,2]
[333948545,1722646259417,-500.0,0.00016712,2]
[333948546,1722646259427,-1068.56,0.00016712,2]
[333948547,1722646259436,-500.0,0.00016712,2]
[333948548,1722646259446,-553.14,0.00016712,2]
[333948549,1722646259456,-500.0,0.00016712,2]
[333948550,1722646259466,-759.4,0.00016712,2]
[333948551,1722646259475,-1063.73,0.00016712,2]
[333948552,1722646259486,-500.0,0.00016712,2]
[333948553,1722646259496,-500.0,0.00016712,2]
[333948554,1722646259505,-920.72,0.00016712,2]
[333948555,1722646259515,-500.0,0.00016712,2]
[333948556,1722646259525,-500.0,0.00016712,2]
[333948557,1722646259534,-609.64,0.00016712,2]
[333948558,1722646259544,-500.0,0.00016712,2]
[333948559,1722646259555,-500.0,0.00016712,2]
[333948560,1722646259565,-1263.0,0.00016712,2]
[333948561,1722646259574,-500.0,0.00016712,2]
[333948562,1722646259584,-500.0,0.00016712,2]
[333948563,1722646259595,-500.0,0.00016712,2]
[333948564,1722646259604,-631.86,0.00016712,2]
[333948565,1722646259614,-200.0,0.00016712,2]
[333948566,1722646259624,-367.67895636,0.00016712,2]
[333948567,1722646259634,-500.0,0.00016712,2]
[333948568,1722646259643,-500.0,0.00016712,2]
[333948569,1722646259653,-500.0,0.00016712,2]
[333948570,1722646259663,-967.69,0.00016712,2]
[333948571,1722646259673,-2089.31,0.00016712,2]
[333948572,1722646259683,-985.32,0.00016712,2]
[333948573,1722646259693,-988.79,0.00016712,2]
[333948574,1722646259702,-661.7,0.00016712,2]
[333948575,1722646259712,-666.42,0.00016712,2]
[333948576,1722646259722,-500.0,0.00016712,2]
[333948577,1722646259732,-842.96,0.00016712,2]
[333948578,1722646259743,-500.0,0.00016712,2]
[333948579,1722646259752,-500.0,0.00016712,2]
[333948580,1722646259762,-500.0,0.00016712,2]
[333948581,1722646259771,-500.0,0.00016712,2]
[333948582,1722646259780,-532.3,0.00016712,2]
[333948583,1722646259790,-500.0,0.00016712,2]
[333948584,1722646259800,-500.0,0.00016712,2]
[333948585,1722646259811,-500.0,0.00016712,2]
[333948586,1722646259821,-1262.18,0.00016712,2]
[333948587,1722646259831,-500.0,0.00016712,2]
[333948588,1722646259840,-500.0,0.00016712,2]
[333948589,1722646259850,-500.0,0.00016712,2]
[333948590,1722646259860,-500.0,0.00016712,2]
[333948591,1722646259870,-564.11,0.00016712,2]
[333948592,1722646259880,-500.0,0.00016712,2]
[333948593,1722646259890,-500.0,0.00016712,2]
[333948594,1722646259899,-500.0,0.00016712,2]
[333948595,1722646259908,-500.0,0.00016712,2]
[333948596,1722646259918,-1548.02,0.00016712,2]
[333948597,1722646259927,-500.0,0.00016712,2]
[333948598,1722646259937,-775.05,0.00016712,2]
[333948599,1722646259947,-500.0,0.00016712,2]
[333948600,1722646259956,-500.0,0.00016712,2]
[333948601,1722646259966,-500.0,0.00016712,2]
[333948602,1722646259975,-500.0,0.00016712,2]
[333948603,1722646259985,-296.76855542,0.00016712,2]
[333948604,1722646259994,-668.0,0.00016712,2]
[333948605,1722646260003,-794.23,0.00016712,2]
[333948606,1722646260014,-500.0,0.00016712,2]
[333948607,1722646260024,-500.0,0.00016712,2]
[333948608,1722646260033,-500.0,0.00016712,2]
[333948609,1722646260043,-500.0,0.00016712,2]
[333948610,1722646260053,-617.43,0.00016712,2]
[333948611,1722646260069,-535.35,0.00016712,2]
[333948612,1722646260081,-500.0,0.00016712,2]
[333948613,1722646260091,-784.94,0.00016712,2]
[333948614,1722646260102,-931.88,0.00016712,2]
[333948615,1722646260112,-802.11,0.00016712,2]
[333948616,1722646260123,-1180.93,0.00016712,2]
[333948617,1722646260132,-500.0,0.00016712,2]
[333948618,1722646260142,-500.0,0.00016712,2]
[333948619,1722646260152,-500.0,0.00016712,2]
[333948620,1722646260162,-685.17,0.00016712,2]
[333948621,1722646260172,-500.0,0.00016712,2]
[333948622,1722646260183,-500.0,0.00016712,2]
[333948623,1722646260193,-500.0,0.00016712,2]
[333948624,1722646260203,-1078.67,0.00016712,2]
[333948625,1722646260214,-500.0,0.00016712,2]
[333948626,1722646260224,-500.0,0.00016712,2]
[333948627,1722646260235,-858.42,0.00016712,2]
[333948628,1722646260245,-500.0,0.00016712,2]
[333948629,1722646260257,-500.0,0.00016712,2]
[333948630,1722646260267,-500.0,0.00016712,2]
[333948631,1722646260277,-500.0,0.00016712,2]
[333948632,1722646260287,-500.0,0.00016712,2]
[333948633,1722646260297,-967.97,0.00016712,2]
[333948634,1722646260311,-539.92,0.00016712,2]
[333948635,1722646260322,-500.0,0.00016712,2]
[333948636,1722646260334,-500.0,0.00016712,2]
[333948637,1722646260343,-500.0,0.00016712,2]
[333948638,1722646260353,-500.0,0.00016712,2]
[333948639,1722646260363,-676.15,0.00016712,2]
[333948640,1722646260372,-1866.07,0.00016712,2]
[333948641,1722646260382,-500.0,0.00016712,2]
[333948642,1722646260392,-500.0,0.00016712,2]
[333948643,1722646260401,-728.16,0.00016712,2]
[333948644,1722646260411,-570.86,0.00016712,2]
[333948645,1722646260421,-568.34,0.00016712,2]
[333948646,1722646260431,-500.0,0.00016712,2]
[333948647,1722646260440,-500.0,0.00016712,2]
[333948648,1722646260450,-500.0,0.00016712,2]
[333948649,1722646260460,-1313.82,0.00016712,2]
[333948650,1722646260469,-500.0,0.00016712,2]
[333948651,1722646260479,-500.0,0.00016712,2]
[333948652,1722646260488,-500.0,0.00016712,2]
[333948653,1722646260498,-500.0,0.00016712,2]
[333948654,1722646260507,-500.0,0.00016712,2]
[333948655,1722646260517,-500.0,0.00016712,2]
[333948656,1722646260526,-1081.6,0.00016712,2]
[333948657,1722646260536,-511.92,0.00016712,2]
[333948658,1722646260545,-1094.43,0.00016712,2]
[333948659,1722646260558,-292.59363706,0.00016712,2]
[333948660,1722646260567,-655.14,0.00016712,2]
[333948661,1722646260576,-595.07,0.00016712,2]
[333948662,1722646260585,-500.0,0.00016712,2]
[333948663,1722646260595,-500.0,0.00016712,2]
[333948664,1722646260603,-941.45,0.00016712,2]
[333948665,1722646260612,-500.0,0.00016712,2]
[333948666,1722646260622,-500.0,0.00016712,2]
[333948667,1722646260632,-500.0,0.00016712,2]
[333948668,1722646260642,-500.0,0.00016712,2]
[333948669,1722646260651,-500.0,0.00016712,2]
[333948670,1722646260661,-500.0,0.00016712,2]
[333948671,1722646260671,-500.0,0.00016712,2]
[333948672,1722646260680,-554.46,0.00016712,2]
[333948673,1722646260690,-1464.3,0.00016712,2]
[333948674,1722646260700,-1154.33,0.00016712,2]
[333948675,1722646260709,-500.0,0.00016712,2]
[333948676,1722646260719,-961.79,0.00016712,2]
[333948677,1722646260728,-500.0,0.00016712,2]
[333948678,1722646260738,-500.0,0.00016712,2]
[333948679,1722646260748,-500.0,0.00016712,2]
[333948680,1722646260757,-500.0,0.00016712,2]
[333948681,1722646260767,-500.0,0.00016712,2]
[333948682,1722646260776,-1475.96,0.00016712,2]
[333948683,1722646260786,-500.0,0.00016712,2]
[333948684,1722646260795,-500.0,0.00016712,2]
[333948685,1722646260806,-693.9,0.00016712,2]
[333948686,1722646260816,-500.0,0.00016712,2]
[333948687,1722646260825,-586.45,0.00016712,2]
[333948688,1722646260835,-561.26,0.00016712,2]
[333948689,1722646260844,-500.0,0.00016712,2]
[333948690,1722646260854,-569.48,0.00016712,2]
[333948691,1722646260863,-574.84,0.00016712,2]
[333948692,1722646260873,-548.36,0.00016712,2]
[333948693,1722646260882,-500.0,0.00016712,2]
[333948694,1722646260892,-660.24,0.00016712,2]
[333948695,1722646260902,-500.0,0.00016712,2]
[333948696,1722646261253,-500.0,0.00016712,2]
[333948697,1722646261284,-500.0,0.00016712,2]
[333948698,1722646261295,-1357.05,0.00016712,2]
[333948699,1722646261307,-978.86,0.00016712,2]
[333948700,1722646261321,-500.0,0.00016712,2]
[333948701,1722646261331,-1065.19,0.00016712,2]
[333948702,1722646261342,-500.0,0.00016712,2]
[333948703,1722646261351,-721.49,0.00016712,2]
[333948704,1722646261361,-1557.39,0.00016712,2]
[333948705,1722646261371,-500.0,0.00016712,2]
[333948706,1722646261381,-763.88,0.00016712,2]
[333948707,1722646261391,-500.0,0.00016712,2]
[333948708,1722646261400,-500.0,0.00016712,2]
[333948709,1722646261410,-500.0,0.00016712,2]
[333948710,1722646261420,-500.0,0.00016712,2]
[333948711,1722646261430,-500.0,0.00016712,2]
[333948712,1722646261440,-500.0,0.00016712,2]
[333948713,1722646261450,-500.0,0.00016712,2]
[333948714,1722646261460,-151.0,0.00016712,2]
[333948715,1722646261470,-151.0,0.00016712,2]
[333948716,1722646261480,-500.0,0.00016712,2]
[333948717,1722646261490,-151.0,0.00016712,2]
[333948718,1722646261500,-227.878101,0.00016712,2]
[333948719,1722646261510,-746.32,0.00016712,2]
[333948720,1722646261520,-1056.33,0.00016712,2]
[333948721,1722646261530,-500.0,0.00016712,2]
[333948722,1722646261540,-525.08,0.00016712,2]
[333948723,1722646261550,-1110.42,0.00016712,2]
[333948724,1722646261563,-190.06646579,0.00016712,2]
[333948725,1722646261574,-500.0,0.00016712,2]
[333948726,1722646261584,-651.59,0.00016712,2]
[333948727,1722646261594,-500.0,0.00016712,2]
[333948728,1722646261604,-927.65,0.00016712,2]
[333948729,1722646261614,-500.0,0.00016712,2]
[333948730,1722646261624,-1148.69,0.00016712,2]
[333948731,1722646261634,-2421.4,0.00016712,2]
[333948732,1722646261646,-500.0,0.00016712,2]
[333948733,1722646261655,-500.0,0.00016712,2]
[333948734,1722646261666,-500.0,0.00016712,2]
[333948735,1722646261676,-1357.59,0.00016712,2]
[333948736,1722646261687,-1257.9,0.00016712,2]
[333948737,1722646261697,-500.0,0.00016712,2]
[333948738,1722646261707,-1278.64,0.00016712,2]
[333948739,1722646261718,-500.0,0.00016712,2]
[333948740,1722646261728,-1120.97,0.00016712,2]
[333948741,1722646261738,-928.29,0.00016712,2]
[333948742,1722646261748,-1524.8,0.00016712,2]
[333948743,1722646261758,-252.97709999,0.00016712,2]
[333948744,1722646261767,-500.0,0.00016712,2]
[333948745,1722646261778,-1099.59,0.00016712,2]
[333948746,1722646261787,-500.0,0.00016712,2]
[333948747,1722646261798,-652.03,0.00016712,2]
[333948748,1722646261813,-836.71,0.00016712,2]
[333948749,1722646261824,-500.0,0.00016712,2]
[333948750,1722646261834,-679.78,0.00016712,2]
[333948751,1722646261844,-1408.09,0.00016712,2]
[333948752,1722646261854,-1134.78,0.00016712,2]
[333948753,1722646261864,-500.0,0.00016712,2]
[333948754,1722646261874,-500.0,0.00016712,2]
[333948755,1722646261883,-500.0,0.00016712,2]
[333948756,1722646261894,-505.26,0.00016712,2]
[333948757,1722646261904,-705.4,0.00016712,2]
[333948758,1722646261914,-545.85,0.00016712,2]
[333948759,1722646261924,-1051.29,0.00016712,2]
[333948760,1722646261934,-500.0,0.00016712,2]
[333948761,1722646261944,-506.76,0.00016712,2]
[333948762,1722646261954,-500.0,0.00016712,2]
[333948763,1722646261964,-2212.86,0.00016712,2]
[333948764,1722646261974,-1428.0,0.00016712,2]